bitfinex/quotes_ETHUSD_20220201
["timestamp","ask_amount","ask_price","bid_price","bid_amount"]
[1643717335153,0.3874579,2765.6,2765.1,1.78067]
[1643717335352,0.95303784,2765.5,2765.1,1.6]
[1643717336353,0.95303784,2765.5,2765.1,0.3]
[1643717336558,0.95303784,2765.5,2764.7,0.01]
[1643717336755,8.5711,2765.4,2764.7,0.01]
[1643717336952,8.5711,2765.4,2764.5,0.18067]
[1643717337158,4.82329641,2765.3,2763.6,3.7965078]
[1643717337354,4.82329641,2765.3,2763.1,3.61618]
[1643717337355,0.92029284,2764.0,2763.2,1.81407807]
[1643717337637,0.8412,2764.0,2763.3,0.9045305]
[1643717338531,0.8412,2764.0,2763.5,0.72994467]
[1643717338732,1.17991099,2764.0,2763.7,1.24485947]
[1643717339333,0.8412,2764.0,2763.8,2.16565625]
[1643717339543,0.26176,2764.2,2764.0,0.08411999]
[1643717339544,0.02996,2764.2,2764.0,0.08411999]
[1643717339735,0.02996,2764.2,2764.1,3.771]
[1643717339938,0.02996,2764.2,2764.1,3.12564935]
[1643717340137,0.1807,2765.1,2764.2,0.01618405]
[1643717340334,11.0757,2765.2,2764.4,1.29853465]
[1643717340533,11.0757,2765.2,2764.4,1.83434246]
[1643717340534,0.71289782,2765.1,2764.4,1.83434246]
[1643717340734,0.71289782,2765.1,2764.4,3.41953465]
[1643717340934,0.89359782,2765.1,2764.4,3.41953465]
[1643717341136,0.71289782,2765.1,2764.4,4.1099181]
[1643717341353,0.89359782,2765.1,2764.4,3.9292481]
[1643717341763,0.71289782,2765.1,2764.4,3.9292481]
[1643717341958,5.4913,2765.2,2764.4,6.1556074]
[1643717342161,5.23546,2765.3,2764.4,6.1556074]
[1643717342162,0.02996,2765.3,2765.0,0.43974905]
[1643717342362,0.02996,2765.3,2765.1,0.521]
[1643717342558,8.5711,2765.4,2765.1,0.821]
[1643717343158,0.44591467,2765.3,2765.1,0.821]
[1643717344159,0.62661467,2765.3,2765.1,0.521]
[1643717344362,0.62661467,2765.3,2764.8,1.2140196]
[1643717344560,0.62661467,2765.3,2764.8,1.56753009]
[1643717344859,0.62661467,2765.3,2764.8,0.36351049]
[1643717345709,0.1807,2765.3,2764.8,0.36351049]
[1643717345909,0.1807,2765.3,2764.7,3.1704442]
[1643717346107,0.1807,2765.3,2764.7,1.3]
[1643717346508,0.1807,2765.5,2764.7,1.3]
[1643717346709,1.5278632,2765.4,2764.6,1.808002]
[1643717346913,0.1807,2765.3,2764.6,1.808002]
[1643717347108,0.42942267,2764.8,2764.6,1.808002]
[1643717347712,0.1807,2764.7,2764.2,0.01]
[1643717348110,0.1807,2764.7,2763.8,0.19307461]
[1643717348312,0.1307,2764.7,2763.8,0.18067]
[1643717348758,0.43422505,2764.3,2763.9,0.63741887]
[1643717349146,0.43422505,2764.3,2763.8,0.18067]
[1643717349347,4.0951,2764.7,2763.8,1.18067]
[1643717349555,4.0951,2764.7,2763.8,1.96147]
[1643717350552,0.4329869,2764.6,2764.3,0.40372759]
[1643717350754,0.4329869,2764.6,2763.8,1.96147]
[1643717350952,0.4329869,2764.6,2764.0,1.8085578]
[1643717351354,0.4329869,2764.6,2764.0,1.5042778]
[1643717351955,10.7456029,2764.6,2764.2,0.39214367]
[1643717352164,10.7456029,2764.6,2764.0,1.5042778]
[1643717353205,10.7456029,2764.6,2764.0,2.4085678]
[1643717354302,10.7456029,2764.6,2764.2,0.3862783]
[1643717354501,10.312616,2764.6,2764.2,0.3862783]
[1643717354709,10.312616,2764.6,2764.3,3.51452873]
[1643717354903,10.312616,2764.6,2764.5,2.83067]
[1643717355108,5.62816,2765.4,2764.6,6.55]
[1643717355109,0.02996,2765.4,2764.6,6.55]
[1643717355308,0.02996,2765.4,2764.8,0.01210694]
[1643717355510,3.8206,2766.2,2764.9,0.64047305]
[1643717355709,1.4928687,2766.1,2765.3,0.42966249]
[1643717355910,1.4928687,2766.1,2765.4,0.1807]
[1643717356354,1.4928687,2766.1,2765.4,1.1807]
[1643717356556,10.1017687,2766.1,2765.4,1.1807]
[1643717356755,10.1017687,2766.1,2765.4,1.4807]
[1643717356756,8.6089,2766.1,2765.4,1.4807]
[1643717357155,0.80206648,2765.7,2765.4,1.3]
[1643717357765,0.80206648,2765.7,2765.4,0.3]
[1643717357964,0.80206648,2765.7,2765.3,0.3]
[1643717358265,0.80206648,2765.7,2765.2,0.1807]
[1643717358465,0.4356316,2765.3,2765.2,2.31977384]
[1643717358664,0.4356316,2765.3,2765.2,0.4807]
[1643717358865,0.80206648,2765.7,2765.2,0.1807]
[1643717360112,0.34640882,2765.6,2765.1,0.1807]
[1643717361108,0.34640882,2765.6,2765.1,0.5597023]
[1643717361711,0.34640882,2765.6,2765.2,0.273058]
[1643717362911,0.52710882,2765.6,2765.2,0.273058]
[1643717364155,0.34640882,2765.6,2765.2,0.273058]
[1643717367155,0.34640882,2765.6,2765.4,0.273058]
[1643717368197,0.93090017,2766.0,2765.4,0.273058]
[1643717368799,0.90094017,2766.0,2765.4,0.273058]
[1643717369398,0.32803185,2765.7,2765.4,0.273058]
[1643717371949,0.32803185,2765.7,2765.5,0.273058]
[1643717376909,0.32803185,2765.7,2765.6,0.273058]
[1643717380154,2.85459616,2765.7,2765.6,0.273058]
[1643717380356,4.38247733,2765.7,2764.9,1.01]
[1643717380555,1.52788117,2765.6,2764.9,0.31]
[1643717380759,1.52788117,2765.6,2764.8,0.1807]
[1643717381357,0.41762596,2765.0,2764.8,0.1807]
[1643717382158,5.6384,2765.7,2764.8,0.1807]
[1643717382358,5.05721046,2765.7,2764.8,0.1807]
[1643717382608,4.64996028,2765.7,2764.8,0.1807]
[1643717382812,4.2234,2765.7,2764.8,0.1807]
[1643717383214,4.2234,2765.7,2765.2,0.36821488]
[1643717383215,0.40072333,2765.6,2765.2,0.36821488]
[1643717383914,0.40072333,2765.6,2765.2,0.54891488]
[1643717384412,0.40072333,2765.6,2765.2,0.1807]
[1643717384813,0.40072333,2765.6,2765.2,1.20398]
[1643717385412,0.40072333,2765.6,2765.2,1.64478536]
[1643717385611,0.40072333,2765.6,2765.2,2.64478536]
[1643717386257,0.21066,2765.8,2765.2,2.64478536]
[1643717386456,0.02996,2765.8,2765.2,2.64478536]
[1643717386656,1.1958,2765.9,2765.2,2.64478536]
[1643717386856,1.1958,2765.9,2765.3,1.33791]
[1643717387058,1.1958,2765.9,2765.4,2.71137]
[1643717387258,1.1958,2765.9,2765.5,2.45665867]
[1643717387458,0.37036756,2766.0,2765.7,0.32729109]
[1643717387659,8.63886,2766.1,2765.7,0.70932509]
[1643717387856,8.63886,2766.1,2765.7,1.00932509]
[1643717388061,8.6089,2766.1,2765.7,3.08239298]
[1643717388258,8.6089,2766.1,2765.8,1.90375]
[1643717388763,8.6089,2766.1,2766.0,0.3]
[1643717388960,0.02996,2766.3,2766.1,0.01611516]
[1643717389160,0.02996,2766.3,2766.2,1.33759]
[1643717389359,10.7653,2766.6,2766.2,4.73500931]
[1643717389360,8.498,2766.6,2766.2,4.73500931]
[1643717389562,8.498,2766.6,2766.2,5.03500931]
[1643717389762,0.37027912,2766.5,2766.2,5.03500931]
[1643717390002,0.37027912,2766.5,2766.2,2.63759]
[1643717392107,0.37027912,2766.5,2766.2,2.20359]
[1643717393109,0.37027912,2766.5,2766.2,2.52536727]
[1643717395962,0.37027912,2766.5,2766.2,2.20359]
[1643717396363,0.37027912,2766.5,2766.2,0.3]
[1643717396569,0.37027912,2766.5,2766.0,1.80733]
[1643717396765,0.1807,2766.4,2765.8,2.99806]
[1643717396967,0.1807,2766.4,2765.8,0.4807]
[1643717397164,0.1807,2766.4,2765.8,0.1807]
[1643717397366,0.85619528,2766.0,2765.8,0.1807]
[1643717397601,0.44902594,2765.9,2765.8,0.1807]
[1643717397802,0.44902594,2765.9,2765.4,0.1807]
[1643717398004,0.44902594,2765.9,2765.2,2.6015826]
[1643717398005,0.44902594,2765.9,2765.2,2.7822826]
[1643717398605,0.44902594,2765.9,2765.2,1.98847]
[1643717398808,0.44902594,2765.9,2765.3,3.88841367]
[1643717399005,0.44902594,2765.9,2765.3,1.8077]
[1643717399212,0.44902594,2765.9,2765.4,1.63031818]
[1643717399507,0.44902594,2765.9,2765.4,1.81101818]
[1643717399707,0.44902594,2765.9,2765.4,2.81101818]
[1643717399913,0.44902594,2765.9,2765.4,2.3846]
[1643717400906,0.44902594,2765.9,2765.5,0.90383]
[1643717401108,0.44902594,2765.9,2765.6,0.90384]
[1643717401355,0.44902594,2765.9,2765.6,1.20384]
[1643717401555,0.06701894,2765.9,2765.6,1.20384]
[1643717401758,5.95166,2766.2,2765.7,0.90382]
[1643717401960,5.95166,2766.2,2765.7,1.8075]
[1643717401961,0.02996,2766.2,2765.7,1.8075]
[1643717402158,4.4969,2766.5,2765.7,2.2415]
[1643717402356,4.4969,2766.5,2765.8,0.3]
[1643717402559,0.1807,2766.5,2765.9,2.08985356]
[1643717402758,8.84866027,2766.6,2766.3,0.43573248]
[1643717402956,8.84866027,2766.6,2766.3,0.90351]
[1643717403357,8.84866027,2766.6,2766.3,2.20351]
[1643717403958,8.84866027,2766.6,2766.3,2.72451]
[1643717404560,0.1807,2767.1,2766.3,2.72451]
[1643717404561,0.1807,2767.1,2766.4,2.08138118]
[1643717404763,0.02996,2767.2,2766.6,1.2035]
[1643717405033,0.02996,2767.2,2766.7,0.36137]
[1643717405224,0.1807,2768.0,2766.9,0.01942428]
[1643717405425,0.1807,2768.0,2767.1,1.80628]
[1643717405624,0.1807,2768.0,2767.3,0.90315]
[1643717405625,0.43983502,2767.5,2767.3,0.90315]
[1643717405825,0.87533155,2767.8,2767.4,1.42416]
[1643717406227,0.1807,2768.0,2767.4,2.3272965]
[1643717406430,4.9478,2768.1,2767.4,2.3272965]
[1643717406630,4.9478,2768.1,2767.5,0.3]
[1643717406827,0.33715523,2767.9,2767.5,1.3]
[1643717407032,4.9478,2768.1,2767.6,2.20415467]
[1643717407227,4.9478,2768.1,2767.6,6.28592137]
[1643717407428,4.9478,2768.1,2767.6,3.7093]
[1643717407630,4.9478,2768.1,2767.7,1.80614]
[1643717407833,5.1284,2768.1,2767.8,0.3]
[1643717408028,0.02996,2768.2,2767.9,2.1370634]
[1643717408230,0.02996,2768.2,2768.0,0.3]
[1643717408433,1.2456,2768.6,2768.1,0.521]
[1643717408434,1.4262,2768.6,2768.1,0.521]
[1643717408629,0.34621589,2768.2,2768.1,0.521]
[1643717409059,2.17532645,2768.6,2768.1,0.521]
[1643717409857,2.17532645,2768.6,2768.1,1.42401]
[1643717410058,2.17532645,2768.6,2768.2,0.20073]
[1643717410260,0.39656332,2768.4,2768.2,0.20073]
[1643717410759,0.39656332,2768.4,2768.3,0.20073]
[1643717411860,0.21343672,2768.4,2768.3,0.20073]
[1643717413624,1.12603937,2768.4,2768.3,0.20073]
[1643717415130,1.30663937,2768.4,2768.3,0.20073]
[1643717415333,1.30663937,2768.4,2767.8,0.01]
[1643717415629,0.1806,2768.3,2767.2,0.1806]
[1643717415829,0.1806,2768.3,2767.1,4.08902948]
[1643717416028,0.1806,2768.3,2767.1,1.98703]
[1643717416298,0.31597543,2767.2,2767.1,1.98703]
[1643717416471,0.31597543,2767.2,2767.1,2.1677]
[1643717416673,0.31597543,2767.2,2767.1,0.1806]
[1643717417074,0.99999999,2768.0,2767.1,0.1806]
[1643717417075,0.1806,2767.4,2767.1,0.1806]
[1643717417272,0.1806,2768.0,2767.1,0.36127]
[1643717417477,0.1806,2768.1,2767.1,0.36127]
[1643717417673,0.1806,2768.1,2767.3,0.90325]
[1643717417872,1.2154,2768.2,2767.3,1.08392]
[1643717418074,0.41242217,2767.9,2767.6,1.22649692]
[1643717418472,0.41242217,2767.9,2767.6,1.20897971]
[1643717419072,0.41242217,2767.9,2767.7,0.90312]
[1643717419475,0.41242217,2767.9,2767.6,0.3]
[1643717419675,0.41242217,2767.9,2767.4,1.80619]
[1643717419877,0.1806,2767.8,2767.2,0.3]
[1643717420121,0.1806,2767.8,2767.1,1.01]
[1643717420122,0.15621617,2767.8,2767.1,0.01]
[1643717420313,0.15621617,2767.8,2766.6,1.08415]
[1643717420314,0.94338298,2767.6,2766.8,0.67094654]
[1643717420512,0.15621617,2767.8,2766.9,0.1806]
[1643717420715,1.2154,2768.2,2767.0,0.32151808]
[1643717420716,0.33628494,2767.3,2767.0,0.32151808]
[1643717420914,0.1806,2768.1,2767.1,0.1806]
[1643717421515,0.67698523,2767.8,2767.1,0.1806]
[1643717421715,0.67698523,2767.8,2767.0,2.30883808]
[1643717421912,0.39538122,2767.5,2767.0,2.30883808]
[1643717422113,0.39538122,2767.5,2767.0,3.30883808]
[1643717422317,0.1806,2768.1,2767.0,5.53212669]
[1643717423118,0.1806,2768.1,2767.2,1.80657]
[1643717423317,0.38903028,2767.8,2767.5,0.39710308]
[1643717423516,0.38903028,2767.8,2767.3,2.47436523]
[1643717423764,0.38903028,2767.8,2767.4,1.0]
[1643717423966,0.38903028,2767.8,2767.3,1.3]
[1643717424268,0.38903028,2767.8,2767.3,0.3]
[1643717424467,0.38903028,2767.8,2767.3,1.3]
[1643717424868,0.38903028,2767.8,2767.5,0.43692979]
[1643717425970,0.38903028,2767.8,2767.6,0.90325]
[1643717426173,0.38903028,2767.8,2767.6,1.20325]
[1643717426370,1.24536,2768.2,2767.6,1.20325]
[1643717426777,1.24536,2768.2,2767.7,0.521]
[1643717426778,1.2154,2768.2,2767.7,0.521]
[1643717426974,1.2154,2768.2,2767.8,0.01532246]
[1643717427174,1.2154,2768.2,2767.9,2.34218518]
[1643717427374,6.87046,2768.6,2768.0,0.3]
[1643717427611,0.38382634,2768.5,2768.1,0.37070509]
[1643717428608,1.2217,2768.6,2768.2,0.90301]
[1643717428812,7.54596,2768.7,2768.2,2.08361]
[1643717428813,7.36536,2768.7,2768.2,2.08361]
[1643717429009,7.36536,2768.7,2768.2,2.38361]
[1643717429309,7.3354,2768.7,2768.2,2.38361]
[1643717429709,0.41127942,2768.5,2768.2,2.38361]
[1643717430113,0.41127942,2768.5,2768.2,5.0922931]
[1643717430509,7.3354,2768.7,2768.2,5.0922931]
[1643717430709,7.3354,2768.7,2768.2,4.9116931]
[1643717431774,0.37517388,2768.6,2768.2,4.9116931]
[1643717433977,8.3405,2768.8,2768.3,0.1806]
[1643717433978,3.8756,2768.8,2768.3,0.1806]
[1643717434182,3.8756,2768.8,2768.3,0.72724792]
[1643717434475,0.02996,2769.0,2768.5,0.92277866]
[1643717434677,0.02996,2769.0,2768.6,0.7014]
[1643717434876,0.42614241,2769.4,2768.8,2.67498145]
[1643717435113,0.42614241,2769.4,2768.9,0.521]
[1643717435311,0.1804,2769.5,2768.9,1.521]
[1643717435312,2.62217682,2769.5,2768.9,1.521]
[1643717435616,2.62217682,2769.5,2769.0,1.80536]
[1643717435810,2.44177682,2769.5,2769.0,2.10536]
[1643717436010,2.44177682,2769.5,2769.0,3.62636]
[1643717436213,2.44177682,2769.5,2769.2,0.38647551]
[1643717436416,12.05956504,2769.6,2769.2,0.38647551]
[1643717437013,12.02960504,2769.6,2769.2,0.38647551]
[1643717437715,12.02960504,2769.6,2769.0,5.77603639]
[1643717437914,12.21000504,2769.6,2769.2,0.90267]
[1643717438120,10.96370504,2769.6,2769.3,0.90267]
[1643717438315,0.53070504,2769.6,2769.0,2.62636]
[1643717438518,0.1804,2769.6,2769.0,2.62636]
[1643717438961,0.1804,2769.6,2769.1,1.0]
[1643717439162,1.1287,2769.7,2769.3,0.90267]
[1643717439363,0.02996,2769.8,2769.3,0.90267]
[1643717439662,0.43184093,2769.5,2769.3,0.90267]
[1643717440062,0.1804,2769.8,2769.3,0.90267]
[1643717440367,0.1804,2769.8,2769.0,1.80536]
[1643717440368,1.52588644,2769.7,2769.0,1.80536]
[1643717440563,1.52588644,2769.7,2768.7,0.01]
[1643717440564,0.1804,2769.6,2768.7,0.01]
[1643717440768,1.52588644,2769.5,2768.7,0.01]
[1643717440962,1.52588644,2769.5,2768.6,0.13819997]
[1643717440963,0.1804,2769.4,2768.6,0.13819997]
[1643717441366,0.88073451,2769.1,2768.4,4.93170485]
[1643717441562,0.1804,2769.0,2768.4,4.93170485]
[1643717441763,0.88073451,2769.1,2768.5,0.1804]
[1643717441966,0.1804,2769.6,2768.6,0.90284]
[1643717442162,1.52600862,2769.5,2768.6,0.90284]
[1643717442365,0.1804,2769.4,2768.6,0.90284]
[1643717442807,0.1804,2769.6,2768.6,0.90284]
[1643717443014,1.52599215,2769.5,2768.9,0.90278]
[1643717443216,1.52599215,2769.5,2768.9,1.80556]
[1643717443418,0.1804,2769.4,2768.9,1.80556]
[1643717443615,1.52599215,2769.3,2768.9,1.80556]
[1643717443813,1.82599215,2769.3,2768.9,1.80556]
[1643717444014,0.33109104,2769.1,2768.9,1.80556]
[1643717444214,0.33109104,2769.1,2768.7,0.90289]
[1643717444814,1.1944548,2769.1,2768.8,0.3]
[1643717445018,1.4944548,2769.1,2768.7,0.90289]
[1643717445217,0.1804,2769.0,2768.7,0.90289]
[1643717445419,1.70652408,2769.0,2768.7,0.90289]
[1643717445615,0.1804,2769.0,2768.7,0.90289]
[1643717446672,0.1804,2769.0,2768.7,1.80576]
[1643717447271,0.3,2769.1,2768.7,1.80576]
[1643717447471,0.1804,2769.5,2768.7,1.80576]
[1643717447672,1.52604968,2769.4,2768.7,1.80576]
[1643717447971,0.37053522,2769.1,2768.7,1.80576]
[1643717448173,0.85093522,2769.1,2768.7,1.80576]
[1643717448574,1.52609098,2769.0,2768.7,1.80576]
[1643717448772,0.85093522,2769.1,2768.7,1.80576]
[1643717450021,0.67053522,2769.1,2768.7,1.80576]
[1643717450414,0.67053522,2769.1,2768.7,0.90289]
[1643717450614,1.5260958,2769.0,2768.4,4.93170485]
[1643717450817,1.5260958,2769.0,2768.4,5.41210485]
[1643717451116,0.67053522,2769.1,2768.4,5.41210485]
[1643717451715,6.4749,2769.3,2768.7,0.90285]
[1643717451918,6.4749,2769.3,2768.9,2.70819]
[1643717452116,6.4749,2769.3,2769.0,0.4804]
[1643717452316,1.2028,2769.4,2769.0,0.4804]
[1643717452715,0.42355482,2769.3,2769.0,0.4804]
[1643717453115,0.32996,2769.6,2769.0,0.4804]
[1643717453318,1.52586631,2769.5,2769.1,0.90267]
[1643717453517,0.02996,2769.6,2769.1,1.80537]
[1643717453779,6.1735,2769.7,2769.1,1.80537]
[1643717453974,1.52581987,2769.6,2769.1,1.80537]
[1643717454579,1.92850706,2769.6,2769.1,1.80537]
[1643717454781,0.40268719,2769.6,2769.1,1.80537]
[1643717455484,1.52587791,2769.5,2769.1,1.80537]
[1643717455979,1.52587791,2769.5,2768.9,2.14221694]
[1643717456383,1.82587791,2769.5,2768.9,2.14221694]
[1643717456577,1.52587791,2769.4,2768.9,2.14221694]
[1643717457185,0.88308719,2769.6,2768.9,2.44221694]
[1643717457383,1.70624733,2769.5,2769.1,0.90271]
[1643717457605,0.1804,2769.5,2769.1,3.06456788]
[1643717457808,0.1804,2769.5,2769.1,5.16982788]
[1643717458408,6.1735,2769.7,2769.1,5.35022788]
[1643717458810,6.1735,2769.7,2769.2,1.0]
[1643717459016,6.1735,2769.7,2769.3,5.21431726]
[1643717459210,6.1735,2769.7,2769.3,5.51431726]
[1643717459412,1.69282035,2769.9,2769.6,0.34823904]
[1643717459609,0.47792035,2769.9,2769.4,1.57286715]
[1643717459810,0.44796035,2769.9,2769.4,1.57286715]
[1643717460411,0.1804,2770.0,2769.5,2.11001635]
[1643717460611,0.1804,2770.0,2769.4,1.57286715]
[1643717461012,0.1804,2770.0,2769.4,0.90257]
[1643717461013,1.52563551,2769.9,2769.4,0.90257]
[1643717461470,0.1804,2770.0,2769.4,0.90257]
[1643717461678,0.35533734,2769.9,2769.6,0.33340321]
[1643717462068,2.62194932,2770.0,2769.6,0.33340321]
[1643717462269,1.52410399,2769.9,2769.7,2.98115905]
[1643717462471,2.62194932,2770.0,2769.8,2.11840516]
[1643717462676,2.44154932,2770.0,2769.8,2.11840516]
[1643717462872,2.44154932,2770.0,2769.8,2.41840516]
[1643717463073,2.47150932,2770.1,2769.8,0.3]
[1643717463273,2.47150932,2770.1,2769.7,2.20251]
[1643717463474,2.44154932,2770.1,2769.7,2.20251]
[1643717463677,2.44154932,2770.1,2769.8,1.80484]
[1643717464177,2.44154932,2770.1,2769.8,3.87777352]
[1643717464373,2.44154932,2770.1,2769.8,4.87777352]
[1643717464777,2.39154932,2770.1,2769.8,4.90340777]
[1643717465009,2.39154932,2770.1,2769.8,5.80575357]
[1643717465217,2.39154932,2770.1,2769.9,0.3]
[1643717465417,0.1804,2770.6,2770.0,2.67729297]
[1643717465617,3.69009909,2770.8,2770.1,0.19988843]
[1643717465814,2.44089909,2770.8,2770.2,0.521]
[1643717466016,0.1804,2771.3,2770.4,4.8]
[1643717466219,3.25453212,2771.4,2770.8,0.94331216]
[1643717466416,3.25453212,2771.4,2771.2,0.01200825]
[1643717466616,3.25453212,2771.4,2771.3,0.90189]
[1643717466822,1.0971237,2771.6,2771.3,1.2802656]
[1643717467216,1.0971237,2771.6,2771.4,0.2802656]
[1643717467420,0.34454966,2771.5,2771.4,0.2802656]
[1643717468014,0.20275195,2771.3,2771.1,1.1804]
[1643717468215,0.20275195,2771.3,2771.0,1.80374]
[1643717468415,0.20275195,2771.3,2770.8,1.80405]
[1643717469081,0.20275195,2771.3,2770.4,0.20565992]
[1643717469082,0.33568953,2770.9,2770.5,1.34579345]
[1643717469485,0.33568953,2770.9,2770.5,0.9022]
[1643717470282,1.28063603,2770.9,2770.5,0.9022]
[1643717470486,1.28063603,2770.9,2770.2,1.0927]
[1643717470784,0.33154692,2770.4,2770.2,0.01]
[1643717470988,0.33154692,2770.4,2770.0,0.13819997]
[1643717471390,0.33154692,2770.4,2769.7,0.91592446]
[1643717471391,1.11033271,2770.4,2769.7,0.91592446]
[1643717471685,0.33154692,2770.4,2769.8,0.1804]
[1643717471995,0.33640571,2769.9,2769.8,0.1804]
[1643717472186,0.33640571,2769.9,2769.5,0.144415]
[1643717472626,0.9668,2770.1,2769.5,0.144415]
[1643717472825,0.9668,2770.1,2769.5,1.046945]
[1643717472826,0.92069651,2770.1,2769.5,1.046945]
[1643717473232,0.92069651,2770.1,2769.6,0.3]
[1643717473633,0.32062245,2769.8,2769.6,0.3]
[1643717473832,0.92069651,2770.1,2769.6,0.3]
[1643717474035,7.109,2770.2,2769.6,0.3]
[1643717474638,7.109,2770.2,2769.7,0.9024]
[1643717474639,5.8977,2770.2,2769.7,0.9024]
[1643717474835,5.8977,2770.2,2770.1,0.41878045]
[1643717475034,0.39804074,2770.5,2769.7,1.0828]
[1643717475237,0.70759758,2770.4,2769.7,1.0828]
[1643717475437,0.39804074,2770.5,2769.8,0.9023593]
[1643717475841,0.39804074,2770.5,2769.9,0.3]
[1643717476039,0.39804074,2770.5,2770.0,0.90237]
[1643717476264,0.64349234,2770.5,2770.2,0.38625437]
[1643717477065,0.64349234,2770.5,2770.0,2.80477]
[1643717477271,0.64349234,2770.5,2770.1,0.3]
[1643717478266,0.64349234,2770.5,2769.9,2.10474]
[1643717479269,0.32047581,2770.0,2769.9,2.10474]
[1643717479873,0.32047581,2770.0,2769.9,0.3]
[1643717480319,0.32047581,2770.0,2769.8,0.1804]
[1643717481322,0.32047581,2770.0,2769.8,1.0829]
[1643717481519,0.32047581,2770.0,2769.8,1.3829]
[1643717481718,0.32047581,2770.0,2769.8,1.2025]
[1643717483969,0.32047581,2770.0,2769.8,0.3]
[1643717484369,0.32047581,2770.0,2769.4,0.01]
[1643717484570,0.32047581,2770.0,2769.2,3.61023]
[1643717484571,0.1804,2769.9,2769.2,3.61023]
[1643717485174,0.1804,2769.9,2769.4,0.90254]
[1643717485369,0.32047581,2770.0,2769.6,0.32059506]
[1643717485568,0.32047581,2770.0,2769.3,0.1804]
[1643717485770,0.32047581,2770.0,2769.3,1.4804]
[1643717486170,0.32047581,2770.0,2769.3,0.4804]
[1643717486369,0.32047581,2770.0,2769.3,1.4804]
[1643717486570,0.35622163,2769.5,2769.3,1.4804]
[1643717486769,0.35622163,2769.5,2769.3,1.3]
[1643717486971,0.91174949,2770.1,2769.3,1.3]
[1643717487181,0.1804,2770.1,2769.4,1.6636965]
[1643717487523,1.3246,2770.2,2769.4,2.6636965]
[1643717487723,1.1442,2770.2,2769.5,0.521]
[1643717487920,1.1442,2770.2,2769.6,1.80485]
[1643717488121,1.5391344,2770.2,2769.9,0.44581393]
[1643717488323,5.568,2770.3,2769.9,0.44581393]
[1643717488522,2.11626879,2770.6,2769.9,0.44581393]
[1643717488722,2.11626879,2770.6,2769.9,0.74581393]
[1643717488723,1.93586879,2770.6,2769.9,0.74581393]
[1643717489323,0.40748901,2770.3,2769.9,1.74581393]
[1643717489521,1.93586879,2770.6,2769.9,1.74581393]
[1643717489522,2.11626879,2770.6,2769.9,1.74581393]
[1643717489726,2.11626879,2770.6,2769.9,2.64818393]
[1643717490330,1.3303,2770.6,2769.9,2.64818393]
[1643717490529,9.9427,2770.7,2770.1,0.90232]
[1643717490729,9.9427,2770.7,2770.2,0.1804]
[1643717491128,9.9427,2770.7,2770.2,1.08269]
[1643717491368,0.42806441,2770.6,2770.2,1.08269]
[1643717492563,9.9427,2770.7,2770.2,1.08269]
[1643717492968,6.2799,2770.7,2770.2,1.08269]
[1643717493167,6.2799,2770.7,2770.2,1.098511]
[1643717493367,6.2799,2770.7,2770.2,1.08269]
[1643717493769,0.35053971,2770.3,2770.2,1.08269]
[1643717494089,6.2799,2770.7,2770.2,1.08269]
[1643717494669,0.1804,2770.6,2770.2,1.08269]
[1643717495121,0.24400313,2770.5,2770.2,1.08269]
[1643717495328,0.24400313,2770.5,2770.2,0.1804]
[1643717495329,0.1804,2770.4,2770.2,0.1804]
[1643717495720,0.43832469,2770.3,2769.8,0.90254]
[1643717495920,0.1804,2770.2,2769.8,0.90254]
[1643717496321,0.42440313,2770.2,2769.8,0.90254]
[1643717496920,0.42440313,2770.2,2769.8,1.20254]
[1643717499267,0.42440313,2770.2,2769.8,1.20101373]
[1643717499467,0.86226523,2770.0,2769.8,1.20101373]
[1643717500272,0.86226523,2770.0,2769.8,2.10348373]
[1643717500471,0.86226523,2770.0,2769.9,0.2736856]
[1643717501873,2.38763866,2770.0,2769.9,0.2736856]
[1643717502924,4.53693049,2770.0,2769.9,0.1431856]
[1643717504126,4.83693049,2770.0,2769.9,0.1431856]
[1643717504329,4.83693049,2770.0,2769.1,0.4804]
[1643717504330,3.75,2769.9,2769.1,0.4804]
[1643717504527,3.81629314,2769.8,2769.1,0.1804]
[1643717504727,1.52537343,2769.7,2769.1,0.1804]
[1643717504929,1.52537343,2769.7,2769.0,0.4804]
[1643717505131,0.41814087,2769.1,2769.0,0.4804]
[1643717505532,0.24400313,2769.2,2769.0,0.4804]
[1643717506368,0.24400313,2769.2,2769.0,0.1804]
[1643717506571,0.24400313,2769.2,2768.9,1.8055]
[1643717506768,0.79441276,2769.1,2768.9,1.8055]
[1643717506970,0.24400313,2769.2,2768.9,1.8055]
[1643717507170,0.5727823,2769.2,2768.9,1.8055]
[1643717507369,0.24400313,2769.2,2768.9,2.70827]
[1643717508169,0.24400313,2769.2,2769.0,2.1055]
[1643717508370,0.24400313,2769.2,2769.0,2.2859]
[1643717509772,0.68551534,2769.2,2769.0,2.2859]
[1643717510813,0.68551534,2769.2,2769.1,0.3]
[1643717511014,0.24400313,2769.2,2769.1,0.3]
[1643717513868,0.24400313,2769.2,2769.1,0.29864386]
[1643717515472,0.24400313,2769.2,2769.1,0.47904386]
[1643717517927,0.56072201,2769.2,2769.1,0.47904386]
[1643717518729,0.24400313,2769.2,2769.1,0.47904386]
[1643717518929,0.24400313,2769.2,2769.1,0.29864386]
[1643717522274,0.24400313,2769.2,2769.0,0.3]
[1643717522873,0.24400313,2769.2,2768.9,0.90274]
[1643717523576,0.24400313,2769.2,2769.0,0.3]
[1643717523975,0.24400313,2769.2,2769.0,1.20274]
[1643717524774,0.24400313,2769.2,2769.0,0.3]
[1643717525229,0.24400313,2769.2,2769.0,1.20274]
[1643717527726,0.24400313,2769.2,2769.0,0.3]
[1643717527926,0.24400313,2769.2,2769.1,0.38574689]
[1643717528128,0.24400313,2769.2,2769.0,0.3]
[1643717529369,0.24400313,2769.2,2769.0,0.67381467]
[1643717529564,0.24400313,2769.2,2769.0,0.37381467]
[1643717530769,0.24400313,2769.2,2769.0,0.67381467]
[1643717532621,0.24400313,2769.2,2769.0,0.97381467]
[1643717533422,0.1952602,2769.2,2769.0,0.67381467]
[1643717535426,0.1952602,2769.2,2769.1,0.1804]
[1643717536299,0.1952602,2769.2,2769.0,0.3]